bitfinex/quotes_BTCUSD_20250526
["timestamp","ask_amount","ask_price","bid_price","bid_amount"]
[1748278396202,0.21945767,109380.0,109370.0,1.70838039]
[1748278397432,0.02746646,109380.0,109370.0,1.70838039]
[1748278398402,0.21031524,109380.0,109370.0,1.70838039]
[1748278398523,0.21945767,109380.0,109370.0,1.70838039]
[1748278398724,0.21945767,109380.0,109370.0,1.69009494]
[1748278398938,0.21945767,109380.0,109370.0,1.65689494]
[1748278399150,0.21945767,109380.0,109370.0,1.66603779]
[1748278399666,0.21945767,109380.0,109370.0,1.56097294]
[1748278399822,0.21949767,109380.0,109370.0,1.56097294]
[1748278401334,0.01836361,109380.0,109370.0,1.60031562]
[1748278401594,8e-05,109380.0,109370.0,1.98775647]
[1748278401995,0.01836395,109380.0,109370.0,2.01518447]
[1748278402202,0.02750613,109380.0,109370.0,2.01518447]
[1748278402438,0.01836395,109380.0,109370.0,2.01518447]
[1748278403288,0.01836395,109380.0,109370.0,2.0198232]
[1748278404182,0.01836395,109380.0,109370.0,2.0208232]
[1748278404893,0.01836395,109380.0,109370.0,1.9879232]
[1748278406751,0.01836395,109380.0,109370.0,1.9604952]
[1748278407274,0.01836395,109380.0,109370.0,1.9302952]
[1748278408151,0.01836395,109380.0,109370.0,1.9635952]
[1748278408630,0.02750622,109380.0,109370.0,1.9635952]
[1748278408846,0.01836395,109380.0,109370.0,1.9635952]
[1748278409270,0.01836395,109380.0,109370.0,1.9302952]
[1748278412207,0.02750613,109380.0,109370.0,1.9302952]
[1748278414162,0.0366484,109380.0,109370.0,1.9302952]
[1748278416189,0.02750613,109380.0,109370.0,1.9302952]
[1748278416396,0.0366484,109380.0,109370.0,1.9302952]
[1748278417487,0.0366484,109380.0,109370.0,1.7840952]
[1748278417679,0.02750596,109380.0,109370.0,1.9302952]
[1748278417846,0.03664823,109380.0,109370.0,1.9302952]
[1748278418052,8e-05,109380.0,109370.0,2.4522952]
[1748278418239,4e-05,109390.0,109380.0,0.62841593]
[1748278418455,4e-05,109390.0,109380.0,6.31484337]
[1748278418665,4e-05,109390.0,109380.0,5.76796149]
[1748278418864,4e-05,109390.0,109380.0,6.04307637]
[1748278419033,4e-05,109390.0,109380.0,5.39828637]
[1748278419473,0.00918085,109390.0,109380.0,5.39828637]
[1748278419877,4e-05,109390.0,109380.0,5.39828637]
[1748278420363,4e-05,109390.0,109380.0,5.94516825]
[1748278420832,4e-05,109390.0,109380.0,6.25256825]
[1748278421258,4e-05,109390.0,109380.0,6.28153582]
[1748278421473,0.27449966,109420.0,109410.0,0.54107816]
[1748278421686,0.26536115,109420.0,109410.0,2.84040192]
[1748278422109,0.16092655,109430.0,109420.0,0.53192095]
[1748278422326,0.34369236,109430.0,109420.0,1.29172251]
[1748278422541,0.32541643,109430.0,109420.0,1.82795347]
[1748278422769,0.32555259,109430.0,109420.0,1.82795347]
[1748278422975,0.06113616,109430.0,109420.0,1.85342852]
[1748278423183,0.02754976,109430.0,109420.0,1.8808448]
[1748278424197,0.02754976,109430.0,109420.0,1.8699106]
[1748278424481,0.00113616,109430.0,109420.0,2.49267141]
[1748278424689,0.00113616,109430.0,109420.0,2.46717141]
[1748278424894,0.01027375,109430.0,109420.0,2.46717141]
[1748278425115,0.01027367,109430.0,109420.0,2.49767141]
[1748278425330,0.00113616,109430.0,109420.0,1.67015222]
[1748278425545,0.26617732,109430.0,109420.0,0.65100637]
[1748278425757,0.25592087,109420.0,109410.0,0.91430088]
[1748278425971,0.25592087,109420.0,109410.0,1.00384644]
[1748278426173,0.25592087,109420.0,109410.0,1.41985344]
[1748278426378,0.25592087,109420.0,109410.0,1.29740044]
[1748278426587,0.26505971,109420.0,109410.0,1.27920644]
[1748278427002,0.26505971,109420.0,109410.0,1.47291363]
[1748278427205,0.26505971,109420.0,109410.0,1.48205339]
[1748278427403,0.26505971,109420.0,109410.0,1.47291363]
[1748278427607,0.26505971,109420.0,109410.0,1.29011499]
[1748278427808,0.26505971,109420.0,109410.0,1.46250063]
[1748278428014,0.26505971,109420.0,109410.0,1.43686273]
[1748278428255,0.26505971,109420.0,109410.0,1.44600249]
[1748278428453,0.26505971,109420.0,109410.0,1.43686273]
[1748278428630,0.24678194,109420.0,109410.0,1.28151689]
[1748278428833,0.24678194,109420.0,109410.0,0.35090855]
[1748278429056,0.24678194,109420.0,109410.0,0.15706855]
[1748278429214,0.24678194,109420.0,109410.0,0.35090855]
[1748278429416,0.24678194,109420.0,109410.0,0.49706855]
[1748278429640,0.24678194,109420.0,109410.0,0.48616]
[1748278429835,0.24678194,109420.0,109410.0,0.34]
[1748278430055,0.24678194,109420.0,109410.0,0.48616]
[1748278432375,0.24678194,109420.0,109410.0,0.34]
[1748278435699,0.30436627,109420.0,109410.0,0.34]
[1748278436654,0.24678194,109420.0,109410.0,0.34]
[1748278445705,0.2572384,109410.0,109400.0,0.01090855]
[1748278445910,0.2572384,109410.0,109400.0,0.35090855]
[1748278446692,0.2572384,109410.0,109400.0,0.34]
[1748278447348,0.2602384,109410.0,109400.0,0.34]
[1748278448578,0.2632384,109410.0,109400.0,0.34]
[1748278449083,0.25225595,109400.0,109390.0,0.01090855]
[1748278450389,0.25525595,109400.0,109390.0,0.01090855]
[1748278450858,0.25577349,109390.0,109380.0,1.08130359]
[1748278452689,0.23361484,109390.0,109380.0,1.37198254]
[1748278452927,0.0091411,109390.0,109380.0,2.93315233]
[1748278453110,0.20111442,109390.0,109380.0,2.85395956]
[1748278453356,0.21025593,109390.0,109380.0,2.86310149]
[1748278453543,0.21939753,109390.0,109380.0,2.86310149]
[1748278454956,0.21939753,109390.0,109380.0,2.86673767]
[1748278455288,0.22853854,109390.0,109380.0,2.86673767]
[1748278455749,0.21939753,109390.0,109380.0,2.43121672]
[1748278455919,0.21939753,109390.0,109380.0,1.93986282]
[1748278456133,0.28519753,109390.0,109380.0,1.93986282]
[1748278456348,0.27605643,109390.0,109380.0,1.60893689]
[1748278456542,0.27605643,109390.0,109380.0,1.44007416]
[1748278456785,0.26691517,109390.0,109380.0,1.54904516]
[1748278457132,0.26691517,109390.0,109380.0,1.36825656]
[1748278457335,0.26691517,109390.0,109380.0,1.33785356]
[1748278458346,0.26691517,109390.0,109380.0,1.33424324]
[1748278458620,0.25777366,109390.0,109380.0,1.32510097]
[1748278461645,0.25777366,109390.0,109380.0,1.35646011]
[1748278462078,0.21381535,109400.0,109380.0,1.37474406]
[1748278462362,0.20111484,109390.0,109380.0,0.6943229]
[1748278462556,0.20111484,109390.0,109380.0,2.0886999]
[1748278462703,0.21025619,109390.0,109380.0,1.6624079]
[1748278463519,0.21025619,109390.0,109380.0,2.20894823]
[1748278464411,0.21939729,109390.0,109380.0,2.20894823]
[1748278464618,0.21939729,109390.0,109380.0,2.21809016]
[1748278465828,0.2193972,109390.0,109380.0,2.21809016]
[1748278466492,0.25714097,109410.0,109400.0,0.34]
[1748278466708,0.25714097,109410.0,109400.0,0.88654033]
[1748278467754,0.26314097,109410.0,109400.0,0.88654033]
[1748278468171,0.25714097,109410.0,109400.0,0.88654033]
[1748278468620,0.25814097,109410.0,109400.0,0.88654033]
[1748278468819,0.25814097,109410.0,109400.0,0.89747474]
[1748278469030,0.26014097,109410.0,109400.0,0.89747474]
[1748278470638,0.98341341,109410.0,109400.0,0.01093441]
[1748278471799,0.26631484,109390.0,109380.0,0.04229355]
[1748278472004,0.41247484,109390.0,109380.0,0.01093441]
[1748278472813,0.25589105,109380.0,109370.0,0.89747474]
[1748278473061,0.25589105,109380.0,109370.0,0.89761136]
[1748278474149,0.25589105,109380.0,109370.0,0.89861136]
[1748278474449,0.25589105,109380.0,109370.0,0.89961136]
[1748278474862,0.25589105,109380.0,109370.0,1.49496836]
[1748278475549,0.25589105,109380.0,109370.0,1.5267126]
[1748278476542,0.25589105,109380.0,109370.0,1.3254026]
[1748278477765,0.25589105,109380.0,109370.0,1.1764406]
[1748278479093,0.25589105,109380.0,109370.0,1.0610526]
[1748278480740,0.22449105,109380.0,109370.0,1.0610526]
[1748278481379,0.19199105,109380.0,109370.0,0.7210526]
[1748278481528,0.22249105,109380.0,109370.0,0.7210526]
[1748278482418,0.22249105,109380.0,109370.0,0.9039181]
[1748278482621,0.22249105,109380.0,109370.0,0.7210526]
[1748278482751,0.19199105,109380.0,109370.0,0.9039181]
[1748278483161,0.19199105,109380.0,109370.0,0.7210526]
[1748278483358,0.22249105,109380.0,109370.0,1.0610526]
[1748278483546,0.22249105,109380.0,109370.0,1.2439181]
[1748278484425,0.23163323,109380.0,109370.0,1.2530612]
[1748278484637,0.23163323,109380.0,109370.0,1.25306137]
[1748278484843,0.22249105,109380.0,109370.0,1.26220456]
[1748278485076,0.22249105,109380.0,109370.0,1.23046032]
[1748278485314,0.22249105,109380.0,109370.0,1.23960342]
[1748278485522,0.01828379,109380.0,109370.0,1.3785346]
[1748278485737,0.01828362,109380.0,109370.0,1.3785346]
[1748278485977,0.02742564,109380.0,109370.0,1.3785346]
[1748278486188,0.02742555,109380.0,109370.0,1.3785346]
[1748278486390,0.03656765,109380.0,109370.0,1.3785346]
[1748278486802,0.03656765,109380.0,109370.0,1.5247346]
[1748278486981,0.02742555,109380.0,109370.0,1.5247346]
[1748278488528,0.03656757,109380.0,109370.0,1.3785346]
[1748278488922,0.25357357,109390.0,109380.0,0.55027508]
[1748278488923,0.01828219,109390.0,109380.0,0.55027508]
[1748278489148,0.02742362,109390.0,109380.0,3.62442197]
[1748278489305,0.02742362,109390.0,109380.0,2.93616797]
[1748278489306,0.21025568,109390.0,109380.0,2.93616797]
[1748278489510,0.21939719,109390.0,109380.0,2.67026512]
[1748278489694,0.21025618,109390.0,109380.0,2.81646512]
[1748278489895,0.21025618,109390.0,109380.0,2.82739953]
[1748278490892,0.21025618,109390.0,109380.0,2.81825743]
[1748278491094,0.21025618,109390.0,109380.0,2.8273997]
[1748278491628,0.201115,109390.0,109380.0,2.8273997]
[1748278491834,0.201115,109390.0,109380.0,2.5092317]
[1748278492035,0.234115,109390.0,109380.0,2.3830917]
[1748278492707,0.25607357,109390.0,109380.0,2.3830917]
[1748278493136,0.22497357,109390.0,109380.0,2.3830917]
[1748278493979,0.24697206,109390.0,109380.0,1.2898913]
[1748278494182,0.24697206,109390.0,109380.0,1.2487883]
[1748278496737,0.24697206,109390.0,109380.0,1.1025883]
[1748278496969,0.24697206,109390.0,109380.0,1.2487883]
[1748278497589,0.24697206,109390.0,109380.0,1.1025883]
[1748278497803,0.24697206,109390.0,109380.0,1.2487883]
[1748278498203,0.24697206,109390.0,109380.0,1.1025883]
[1748278498413,0.24697206,109390.0,109380.0,1.2487883]
[1748278498724,0.24697206,109390.0,109380.0,0.9870203]
[1748278498941,0.24697206,109390.0,109380.0,0.35093441]
[1748278499147,0.2899548,109390.0,109380.0,0.35093441]
[1748278499354,0.4361548,109390.0,109380.0,0.35093441]
[1748278500394,0.4361548,109390.0,109380.0,0.34]
[1748278501151,0.4361548,109390.0,109370.0,0.35107103]
[1748278501152,0.25419105,109380.0,109370.0,0.35107103]
[1748278501352,0.31681563,109380.0,109370.0,0.35107103]
[1748278501565,0.31681563,109380.0,109370.0,0.36561576]
[1748278502383,0.31681563,109380.0,109370.0,0.36661576]
[1748278502599,0.40636119,109380.0,109370.0,0.35207103]
[1748278502804,0.31681563,109380.0,109370.0,0.35207103]
[1748278503188,0.40039105,109380.0,109370.0,0.89861136]
[1748278503637,0.40039105,109380.0,109370.0,0.89961136]
[1748278503869,0.40039105,109380.0,109370.0,0.35307103]
[1748278504507,0.40039105,109380.0,109370.0,0.34213662]
[1748278505618,0.40039105,109380.0,109370.0,0.34113662]
[1748278506013,0.41224605,109380.0,109370.0,0.34113662]
[1748278506432,0.41224605,109380.0,109370.0,0.34013662]
[1748278507391,0.50179161,109380.0,109370.0,0.34013662]
[1748278509237,0.50179161,109380.0,109370.0,0.33946176]
[1748278509774,0.50179161,109380.0,109370.0,0.33837114]
[1748278509982,0.50179161,109380.0,109370.0,0.33663138]
[1748278511249,0.49193661,109380.0,109370.0,0.33663138]
[1748278512062,0.49193661,109380.0,109370.0,0.88317171]
[1748278512273,0.49193661,109380.0,109370.0,0.54654033]
[1748278512469,0.40239105,109380.0,109370.0,0.54654033]
[1748278513719,0.25619105,109380.0,109370.0,0.54654033]
[1748278513942,0.40239105,109380.0,109370.0,0.54654033]
[1748278514388,0.20117019,109360.0,109350.0,0.89700308]
[1748278514614,0.26767019,109360.0,109350.0,1.40684677]
[1748278514830,0.26767019,109360.0,109350.0,1.58974571]
[1748278515057,0.26767019,109360.0,109350.0,1.40684677]
[1748278515496,0.26767019,109360.0,109350.0,1.26064677]
[1748278515711,0.26767019,109360.0,109350.0,1.26164677]
[1748278516171,0.26767019,109360.0,109350.0,1.26264677]
[1748278516590,0.26767019,109360.0,109350.0,1.25171236]
[1748278517260,0.45896528,109360.0,109350.0,0.36517203]
[1748278517506,1.09509117,109360.0,109350.0,0.36517203]
[1748278517714,1.09509117,109360.0,109350.0,0.37371007]
[1748278517928,0.54855084,109360.0,109350.0,0.37371007]
[1748278518145,0.54855084,109360.0,109350.0,0.37271007]
[1748278518358,0.54955084,109360.0,109350.0,0.37271007]
[1748278519041,0.54955084,109360.0,109350.0,0.37171007]
[1748278519246,0.55055084,109360.0,109350.0,0.37171007]
[1748278520297,0.26971019,109360.0,109350.0,0.9182504]
[1748278520505,0.41595019,109360.0,109350.0,0.9182504]
[1748278521671,0.41595019,109360.0,109350.0,1.44114934]
[1748278521889,0.20321019,109360.0,109350.0,1.24971236]
[1748278522778,0.20321019,109360.0,109350.0,1.44175624]
[1748278522987,0.19406633,109360.0,109350.0,1.24971236]
[1748278523394,0.19423511,109360.0,109350.0,1.24971236]
[1748278524002,0.19423511,109360.0,109350.0,1.44175616]
[1748278524222,0.19423511,109360.0,109350.0,1.24971236]
[1748278524599,0.19406633,109360.0,109350.0,1.43244252]
[1748278525005,0.18492222,109360.0,109350.0,1.24954358]
[1748278526788,0.24772222,109360.0,109350.0,1.24954358]
[1748278531002,0.24772222,109360.0,109350.0,1.26047799]
[1748278532823,0.18492222,109360.0,109350.0,1.26047799]
[1748278533027,0.00204,109360.0,109350.0,1.53292249]
[1748278533228,0.20320935,109360.0,109350.0,2.10976296]
[1748278533455,0.21235329,109360.0,109350.0,2.10976296]
[1748278533666,0.00204,109360.0,109350.0,2.16025184]
[1748278534293,0.03861442,109360.0,109350.0,2.16025184]
[1748278534728,0.22964066,109360.0,109350.0,2.16025184]
[1748278535003,0.03661442,109360.0,109350.0,2.16025184]
[1748278535152,0.00918335,109360.0,109350.0,2.16025184]
[1748278535349,0.01832679,109360.0,109350.0,2.16025184]
[1748278535576,0.01832679,109360.0,109350.0,2.16386216]
[1748278535772,0.18298485,109380.0,109370.0,0.34]
[1748278536007,0.18298485,109380.0,109370.0,0.88654033]
[1748278536420,0.24518485,109380.0,109370.0,0.88654033]
[1748278537142,0.24818485,109380.0,109370.0,0.88654033]
[1748278537763,0.21648485,109380.0,109370.0,0.88654033]
[1748278538494,0.21848485,109380.0,109370.0,0.88654033]
[1748278540223,0.25138485,109380.0,109370.0,0.88654033]
[1748278545127,0.21848485,109380.0,109370.0,0.88654033]
[1748278545342,0.18798485,109380.0,109370.0,0.88654033]
[1748278546985,0.01427784,109380.0,109370.0,4.04769086]
[1748278547142,0.03256204,109380.0,109370.0,3.86372154]
[1748278547761,0.22455309,109380.0,109370.0,3.59873409]
[1748278547966,0.22155375,109380.0,109370.0,2.53999294]
[1748278548363,0.22155375,109380.0,109370.0,2.54099294]
[1748278548602,0.21955375,109380.0,109370.0,2.54459926]
[1748278548820,0.21955375,109380.0,109370.0,2.54359926]
[1748278549025,30.21955375,109380.0,109370.0,2.54359926]
[1748278549228,30.21955375,109380.0,109370.0,2.55274203]
[1748278549536,30.21955375,109380.0,109370.0,2.56188471]
[1748278549537,30.01842027,109380.0,109370.0,2.56188471]
[1748278549736,30.00013607,109380.0,109370.0,2.23642556]
[1748278549909,29.99041965,109380.0,109370.0,2.23642556]
[1748278550106,29.99041965,109380.0,109370.0,1.85192523]
[1748278550455,30.00870318,109380.0,109370.0,2.39846556]
[1748278550888,29.99956133,109380.0,109370.0,2.18167763]
[1748278551105,30.00870318,109380.0,109370.0,2.36454313]
[1748278551525,30.00870318,109380.0,109370.0,2.36654313]
[1748278551772,30.19155196,109380.0,109370.0,2.31592304]
[1748278551987,30.19155272,109380.0,109370.0,1.57738449]
[1748278552208,30.19155272,109380.0,109370.0,1.36515769]
[1748278552430,30.19155272,109380.0,109370.0,1.52602401]
[1748278552615,30.19155272,109380.0,109370.0,1.53516703]
[1748278552769,30.19155272,109380.0,109370.0,1.51688091]
[1748278552964,30.19155272,109380.0,109370.0,1.52602401]
[1748278553155,30.19155272,109380.0,109370.0,1.53516695]
[1748278553381,30.19155272,109380.0,109370.0,1.5443098]
[1748278553594,30.01784629,109380.0,109370.0,1.55345257]
[1748278553805,30.2098375,109380.0,109370.0,1.55345206]
[1748278554010,29.99956142,109380.0,109370.0,1.58555206]
[1748278554209,30.02698764,109380.0,109370.0,1.61795206]
[1748278554435,30.02698738,109380.0,109370.0,1.61795206]
[1748278555551,30.03612965,109380.0,109370.0,1.61795206]
[1748278555787,29.96656594,109380.0,109370.0,1.61795206]
[1748278555995,29.98484955,109380.0,109370.0,1.61795206]
[1748278556202,29.98484955,109380.0,109370.0,1.63249291]
[1748278556203,29.99399132,109380.0,109370.0,1.63249291]
[1748278556406,29.99399132,109380.0,109370.0,1.62156815]
[1748278556904,29.99399124,109380.0,109370.0,1.62156815]
[1748278559005,29.99399124,109380.0,109370.0,1.47536815]
[1748278559171,30.01227527,109380.0,109370.0,1.58916815]
[1748278559640,30.00313359,109380.0,109370.0,1.58916815]
[1748278559989,29.99399149,109380.0,109370.0,1.58916815]
[1748278560695,30.00313351,109380.0,109370.0,1.58916815]
[1748278560915,29.99399149,109380.0,109370.0,1.58916815]
[1748278561270,29.99399149,109380.0,109370.0,1.60371288]
[1748278561520,30.18598295,109380.0,109370.0,1.52683769]
[1748278561778,30.23089917,109380.0,109370.0,0.90308506]
[1748278561942,30.23089917,109380.0,109370.0,1.37582183]
[1748278562472,30.23089917,109380.0,109370.0,1.03761306]
[1748278562686,30.23089917,109380.0,109370.0,0.90308506]
[1748278562897,30.23089917,109380.0,109370.0,1.04928506]
[1748278563306,30.23089917,109380.0,109370.0,0.90308506]
[1748278563514,30.23089917,109380.0,109370.0,0.89947159]
[1748278563927,30.23089917,109380.0,109370.0,0.35293126]
[1748278564357,30.23089917,109380.0,109370.0,0.89947159]
[1748278564570,30.23089917,109380.0,109370.0,1.27585709]
[1748278564786,30.22175707,109380.0,109370.0,1.09299159]
[1748278565197,30.22175707,109380.0,109370.0,1.08206033]
[1748278565433,30.1676995,109380.0,109370.0,1.36361449]
[1748278565644,30.1768416,109380.0,109370.0,1.52074575]
[1748278565858,30.1676995,109380.0,109370.0,1.51160265]
[1748278566066,30.2313995,109380.0,109370.0,1.52074584]
[1748278566491,29.98485039,109380.0,109370.0,1.53903146]
[1748278566698,30.00313435,109380.0,109370.0,1.53903146]
[1748278566918,30.00313435,109380.0,109370.0,1.54264493]
[1748278566919,29.98484955,109380.0,109370.0,1.54264493]
[1748278567122,29.98484973,109380.0,109370.0,1.58848578]
[1748278567332,29.993992,109380.0,109370.0,1.58848578]
[1748278567508,29.98484973,109380.0,109370.0,1.58848578]
[1748278567714,29.99399191,109380.0,109370.0,1.58848578]
[1748278568732,29.99399191,109380.0,109370.0,1.57394105]
[1748278569472,29.98484973,109380.0,109370.0,1.57394105]
[1748278570816,30.17684078,109380.0,109370.0,0.98695804]
[1748278571039,30.23934078,109380.0,109370.0,1.54264122]
[1748278571243,30.06563435,109380.0,109370.0,1.56092667]
[1748278571458,30.056492,109380.0,109370.0,1.56092667]
[1748278571784,30.06563435,109380.0,109370.0,1.56092667]
[1748278571987,30.056492,109380.0,109370.0,1.56092667]
[1748278572698,30.23934078,109380.0,109370.0,1.11984389]
[1748278572906,30.23019901,109380.0,109370.0,1.26604389]
[1748278573359,30.23019901,109380.0,109370.0,1.44890939]
[1748278573572,30.23019901,109380.0,109370.0,1.45805266]
[1748278573804,30.23019901,109380.0,109370.0,1.46719585]
[1748278574017,30.23019901,109380.0,109370.0,1.4726399]
[1748278574239,30.23019901,109380.0,109370.0,1.24673957]
[1748278574240,30.21191472,109380.0,109370.0,1.24673957]
[1748278574708,30.22105699,109380.0,109370.0,1.43874817]
[1748278574923,30.23019901,109380.0,109370.0,1.52829373]
[1748278575146,30.02906594,109380.0,109370.0,1.54657926]
[1748278575360,29.98484972,109380.0,109370.0,1.54657926]
[1748278575577,29.96656594,109380.0,109370.0,1.54657926]
[1748278575806,29.96656594,109380.0,109370.0,1.57877926]
[1748278575807,29.97570762,109380.0,109370.0,1.57877926]
[1748278576015,29.98484947,109380.0,109370.0,1.57877926]
[1748278576230,29.98484947,109380.0,109370.0,1.57777926]
[1748278576633,29.98484947,109380.0,109370.0,1.59232011]
[1748278576634,29.96656594,109380.0,109370.0,1.59232011]
[1748278576899,29.97570771,109380.0,109370.0,1.62342011]
[1748278577105,29.97570771,109380.0,109370.0,1.57773287]
[1748278578162,29.97570771,109380.0,109370.0,1.51033052]
[1748278579133,29.97570771,109380.0,109370.0,1.51133052]
[1748278579541,29.98484956,109380.0,109370.0,1.51233052]
[1748278579979,29.97570771,109380.0,109370.0,1.51233052]
[1748278580892,29.97570771,109380.0,109370.0,1.67401052]
[1748278581075,29.96656594,109380.0,109370.0,1.67401052]
[1748278581250,29.97570771,109380.0,109370.0,1.67401052]
[1748278581458,29.97570762,109380.0,109370.0,1.70721052]
[1748278582299,29.98484947,109380.0,109370.0,1.70721052]
[1748278582509,29.98484947,109380.0,109370.0,1.67401052]
[1748278583072,29.98484947,109380.0,109370.0,1.16167254]
[1748278583275,29.99399149,109380.0,109370.0,1.67401052]
[1748278583763,29.98484947,109380.0,109370.0,1.67401052]
[1748278584499,29.99399149,109380.0,109370.0,1.67401052]
[1748278584774,29.99399149,109380.0,109370.0,1.16167254]
[1748278584992,30.06623426,109380.0,109370.0,1.66486818]
[1748278585198,30.24908304,109380.0,109370.0,1.67401112]
[1748278585600,30.24908304,109380.0,109370.0,1.14129554]
[1748278585805,30.23079917,109380.0,109370.0,0.21352256]
[1748278586014,30.32032068,109380.0,109370.0,0.102542]
[1748278586212,30.23079917,109380.0,109370.0,1.10107998]
[1748278587620,30.23079917,109380.0,109370.0,1.1156755]
[1748278588169,30.23079917,109380.0,109370.0,0.60333752]
[1748278588765,30.23079917,109380.0,109370.0,0.45713752]
[1748278588971,30.23079917,109380.0,109370.0,0.50279552]
[1748278589203,30.37699917,109380.0,109370.0,0.35659552]
[1748278590439,30.23079917,109380.0,109370.0,0.36754047]
[1748278591036,30.37699917,109380.0,109370.0,0.36754047]
[1748278591561,30.23079917,109380.0,109370.0,0.36754047]
[1748278592188,30.23079917,109380.0,109370.0,0.35294495]
[1748278592605,30.37699917,109380.0,109370.0,0.35294495]
[1748278593195,30.46652068,109380.0,109370.0,0.35294495]
[1748278593598,30.37699917,109380.0,109370.0,0.35294495]
[1748278594415,30.37699917,109380.0,109370.0,0.86528293]
[1748278596268,30.22165707,109380.0,109370.0,1.01148293]
[1748278596478,30.22165707,109380.0,109370.0,1.36860893]
[1748278597715,30.22165707,109380.0,109370.0,1.3722595]
[1748278598060,30.22165707,109380.0,109370.0,1.4065013]
[1748278598620,30.21251472,109380.0,109370.0,1.68805546]
[1748278598823,30.23994143,109380.0,109370.0,1.49604686]
[1748278600145,30.23079933,109380.0,109370.0,1.49604686]
[1748278601155,30.00630812,109380.0,109370.0,1.69719882]
[1748278601318,30.17684126,109380.0,109370.0,1.71548477]
[1748278601518,30.17684051,109380.0,109370.0,1.71548477]
[1748278601758,30.17684043,109380.0,109370.0,1.72462745]
[1748278601919,30.19512504,109380.0,109370.0,1.71548477]
[1748278602343,30.19512504,109380.0,109370.0,1.72462754]
[1748278602540,30.18598261,109380.0,109370.0,1.72462754]
[1748278602742,30.1859827,109380.0,109370.0,1.7063415]
[1748278603030,30.19512513,109380.0,109370.0,1.71548427]
[1748278603236,30.1859827,109380.0,109370.0,1.72462695]
[1748278603639,30.19512513,109380.0,109370.0,1.71548427]
[1748278604305,29.99399157,109380.0,109370.0,1.72462695]
[1748278604521,29.9848498,109380.0,109370.0,1.7718678]
[1748278604918,29.9848498,109380.0,109370.0,1.75727228]
[1748278605151,29.99399173,109380.0,109370.0,1.75727228]
[1748278605354,30.003134,109380.0,109370.0,1.75727228]
[1748278605555,29.97570779,109380.0,109370.0,1.75727228]
[1748278605758,29.98484973,109380.0,109370.0,1.75727228]
[1748278605962,29.99399191,109380.0,109370.0,1.75727228]
[1748278606164,30.18598304,109380.0,109370.0,1.75727228]
[1748278606380,29.99399191,109380.0,109370.0,1.75727228]
[1748278606584,29.98484973,109380.0,109370.0,1.75727228]
[1748278606794,29.99399183,109380.0,109370.0,1.75727228]
[1748278606949,30.00313401,109380.0,109370.0,1.75727228]
[1748278607369,29.98484973,109380.0,109370.0,1.75727228]
[1748278607577,29.98488973,109380.0,109370.0,1.75727228]
[1748278608417,29.97574771,109380.0,109370.0,1.75727228]
[1748278608620,29.98488964,109380.0,109370.0,1.75727228]
[1748278608794,29.99403174,109380.0,109370.0,1.75727228]
[1748278609939,29.98488964,109380.0,109370.0,1.75727228]
[1748278610367,29.97574771,109380.0,109370.0,1.75727228]
[1748278610578,29.98488964,109380.0,109370.0,1.75727228]
[1748278610788,29.99403182,109380.0,109370.0,1.75727228]
[1748278611001,29.99403174,109380.0,109370.0,1.75727228]
[1748278611217,29.97574771,109380.0,109370.0,1.75727228]
[1748278611406,29.96660594,109380.0,109370.0,1.78927228]
[1748278611796,29.94419594,109380.0,109370.0,1.78927228]
[1748278612011,29.95333762,109380.0,109370.0,1.78927228]
[1748278612206,29.94419594,109380.0,109370.0,1.78927228]
[1748278612799,29.89851734,109380.0,109370.0,1.78927228]
[1748278612996,29.85652734,109380.0,109370.0,1.78927228]
[1748278613524,29.84605734,109380.0,109370.0,1.78927228]
[1748278613712,29.83369734,109380.0,109370.0,1.78927228]
[1748278615164,29.78801874,109380.0,109370.0,1.78927228]
[1748278615613,29.75607874,109380.0,109370.0,1.78927228]
[1748278615968,29.71040651,109380.0,109370.0,1.78927228]
[1748278616168,29.71040651,109380.0,109370.0,2.08467228]
[1748278616400,29.66473428,109380.0,109370.0,2.08467228]
[1748278616840,29.61906205,109380.0,109370.0,2.08467228]
[1748278617238,29.58805205,109380.0,109370.0,2.08467228]
[1748278617453,28.98916257,109380.0,109370.0,2.63015206]
[1748278617656,28.94349034,109380.0,109370.0,2.63015206]
[1748278617861,28.93777495,109380.0,109370.0,2.63015206]
[1748278618161,28.89210272,109380.0,109370.0,2.63015206]
[1748278618364,28.89210272,109380.0,109370.0,2.08357228]
[1748278618507,28.84643049,109380.0,109370.0,2.08357228]
[1748278618696,28.80075826,109380.0,109370.0,2.08357228]
[1748278619202,28.75508603,109380.0,109370.0,2.08357228]
[1748278619415,28.7094138,109380.0,109370.0,2.08357228]
[1748278619636,28.6824138,109380.0,109370.0,2.08357228]
[1748278619842,28.6824138,109380.0,109370.0,1.5369925]
[1748278620070,28.6554138,109380.0,109370.0,1.93737228]
[1748278620287,28.6097438,109380.0,109370.0,2.24461228]
[1748278620484,28.6097438,109380.0,109370.0,2.2591885]
[1748278620893,28.5723038,109380.0,109370.0,2.2591885]
[1748278621113,28.5456238,109380.0,109370.0,2.2591885]
[1748278621641,28.55476565,109380.0,109370.0,1.8883485]
[1748278621844,28.5456238,109380.0,109370.0,2.1955885]
[1748278622693,28.5099138,109380.0,109370.0,2.1955885]
[1748278623234,28.4777738,109380.0,109370.0,2.2259885]
[1748278623422,28.4321017,109380.0,109370.0,2.2259885]
[1748278623626,27.90233685,109380.0,109370.0,2.80286828]
[1748278623962,27.85666475,109380.0,109370.0,2.2562885]
[1748278624504,27.81099265,109380.0,109370.0,2.2562885]
[1748278624708,27.76532055,109380.0,109370.0,2.2562885]
[1748278624903,27.67530796,109380.0,109370.0,2.3110985]
[1748278625105,27.67014796,109380.0,109370.0,2.3110985]
[1748278625350,27.62447586,109380.0,109370.0,2.3110985]
[1748278625551,27.62447586,109380.0,109370.0,1.9740985]
[1748278625552,27.49118125,109380.0,109370.0,1.9740985]
[1748278625758,27.47698125,109380.0,109370.0,1.9740985]
[1748278625956,27.43130915,109380.0,109370.0,1.9740985]
[1748278626388,27.38563705,109380.0,109370.0,1.9740985]
[1748278626563,27.31241705,109380.0,109370.0,1.9740985]
[1748278626803,24.83297495,109380.0,109370.0,1.90471228]
[1748278627011,22.74636736,109380.0,109370.0,2.73578509]
[1748278627224,22.74636736,109380.0,109370.0,2.90144886]
[1748278627225,21.99679937,109380.0,109370.0,2.90144886]
[1748278627437,21.93760688,109380.0,109370.0,2.94442522]
[1748278627671,21.83688848,109380.0,109370.0,3.29549279]
[1748278627887,21.76464049,109380.0,109370.0,3.29549279]
[1748278628093,21.7253783,109380.0,109370.0,3.29949279]
[1748278628302,21.70598337,109380.0,109370.0,3.31323135]
[1748278628508,21.69867878,109380.0,109370.0,3.30923135]
[1748278628709,21.66254316,109380.0,109370.0,3.31223135]
[1748278628894,21.59211962,109380.0,109370.0,3.29126378]
[1748278629095,21.57279678,109380.0,109370.0,3.28026378]
[1748278629272,21.54843596,109380.0,109370.0,3.28026378]
[1748278629503,21.5453676,109380.0,109370.0,3.29826378]
[1748278629675,21.52146088,109380.0,109370.0,3.29826378]
[1748278629876,20.52630883,109380.0,109370.0,3.29826378]
[1748278630087,20.49096806,109380.0,109370.0,3.29826378]
[1748278630299,20.48380032,109380.0,109370.0,3.29826378]